bitfinex/quotes_BTCUSD_20250127
["timestamp","ask_amount","ask_price","bid_price","bid_amount"]
[1737950651697,0.49991454,101290.0,101280.0,0.15438815]
[1737950651879,0.62781454,101290.0,101280.0,0.15438815]
[1737950652306,0.47972554,101290.0,101280.0,0.15887821]
[1737950652460,0.47972554,101290.0,101280.0,0.15438815]
[1737950652461,0.62781454,101290.0,101280.0,0.15438815]
[1737950652879,0.62781454,101290.0,101280.0,0.15887821]
[1737950652880,0.4800229,101290.0,101280.0,0.15887821]
[1737950653324,0.36775132,101290.0,101280.0,0.23102177]
[1737950653523,0.36775132,101290.0,101280.0,0.15887821]
[1737950653898,0.36075132,101290.0,101280.0,0.15887821]
[1737950654249,0.36975132,101290.0,101280.0,0.15887821]
[1737950654587,0.45875132,101290.0,101280.0,0.15887821]
[1737950654825,0.46175132,101290.0,101280.0,0.15887821]
[1737950655031,0.14550403,101290.0,101280.0,0.29616957]
[1737950655450,0.14250403,101290.0,101280.0,0.29616957]
[1737950655625,0.14450403,101290.0,101280.0,0.29616957]
[1737950658333,0.24450403,101290.0,101280.0,0.25076957]
[1737950660758,0.25322403,101290.0,101280.0,0.25076957]
[1737950662925,0.24450403,101290.0,101280.0,0.25076957]
[1737950664869,0.14450403,101290.0,101280.0,0.25076957]
[1737950666170,0.04450403,101290.0,101280.0,0.26053793]
[1737950667280,0.03750403,101290.0,101280.0,0.26053793]
[1737950667578,0.13750403,101290.0,101280.0,0.26053793]
[1737950667819,0.14150403,101290.0,101280.0,0.26053793]
[1737950668019,0.13950403,101290.0,101280.0,0.26053793]
[1737950668223,0.13950403,101290.0,101280.0,0.09702734]
[1737950668439,0.24050403,101290.0,101280.0,0.25036596]
[1737950669393,0.36914032,101290.0,101280.0,0.15333862]
[1737950669818,0.37105132,101290.0,101280.0,0.15333862]
[1737950673288,0.39914403,101290.0,101280.0,0.15333862]
[1737950673962,0.29914403,101290.0,101280.0,0.15333862]
[1737950674149,0.04050403,101290.0,101280.0,0.15432584]
[1737950674678,0.04050403,101290.0,101280.0,0.25167313]
[1737950674850,0.04050403,101290.0,101280.0,0.25068591]
[1737950675801,0.04050403,101290.0,101280.0,0.36295749]
[1737950676078,0.04050403,101290.0,101280.0,1.02504638]
[1737950676804,0.04050403,101290.0,101280.0,1.02100795]
[1737950676805,0.03050403,101290.0,101280.0,1.02100795]
[1737950677704,0.03050403,101290.0,101280.0,1.01468998]
[1737950678329,0.03050403,101290.0,101280.0,1.00776912]
[1737950678763,0.03050403,101290.0,101280.0,1.00068193]
[1737950679031,0.03050403,101290.0,101280.0,1.01064224]
[1737950679295,0.02950403,101290.0,101280.0,1.01064224]
[1737950679750,0.02950403,101290.0,101280.0,1.00329494]
[1737950680667,0.02550403,101290.0,101280.0,1.00329494]
[1737950681138,0.02650403,101290.0,101280.0,1.00329494]
[1737950681340,0.02750403,101290.0,101280.0,1.00329494]
[1737950681675,0.02650403,101290.0,101280.0,1.00329494]
[1737950682065,0.05591656,101290.0,101280.0,1.00329494]
[1737950682771,0.05591656,101290.0,101280.0,1.0029285]
[1737950683754,0.05591656,101290.0,101280.0,1.00171029]
[1737950683980,0.02650403,101290.0,101280.0,1.06111029]
[1737950684692,0.02650403,101290.0,101280.0,1.04945727]
[1737950684915,0.02550403,101290.0,101280.0,1.04945727]
[1737950685143,0.05491656,101290.0,101280.0,1.05145727]
[1737950685367,0.05491656,101290.0,101280.0,1.049624]
[1737950686044,0.05491656,101290.0,101280.0,1.059624]
[1737950686303,0.02550403,101290.0,101280.0,1.059624]
[1737950686737,0.02550403,101290.0,101280.0,1.26870269]
[1737950686989,0.02550403,101290.0,101280.0,1.41680669]
[1737950687425,0.05491656,101290.0,101280.0,1.40680669]
[1737950688465,0.02550403,101290.0,101280.0,1.40680669]
[1737950695906,0.10620403,101290.0,101280.0,1.35740669]
[1737950697317,0.02550403,101290.0,101280.0,1.35740669]
[1737950698509,0.02550403,101290.0,101280.0,0.49540669]
[1737950698720,0.02550403,101290.0,101280.0,0.58520669]
[1737950699151,0.00883736,101290.0,101280.0,0.54250669]
[1737950699363,0.03820947,101290.0,101280.0,0.54250669]
[1737950699976,0.03820947,101290.0,101280.0,0.55250669]
[1737950700301,0.03820947,101290.0,101280.0,0.54250669]
[1737950700501,0.00883736,101290.0,101280.0,0.49540669]
[1737950702241,0.03821993,101290.0,101280.0,0.49540669]
[1737950704471,0.03821993,101290.0,101280.0,1.50740669]
[1737950704692,0.03821993,101290.0,101280.0,1.52740669]
[1737950707505,0.03821993,101290.0,101280.0,1.55824232]
[1737950710326,0.00883736,101290.0,101280.0,1.55824232]
[1737950713794,0.00883736,101290.0,101280.0,1.53824232]
[1737950713991,0.00883736,101290.0,101280.0,1.38824232]
[1737950714219,0.08783736,101290.0,101280.0,1.12478782]
[1737950714419,0.18783736,101290.0,101280.0,1.12478782]
[1737950716476,0.18783736,101290.0,101280.0,1.12378782]
[1737950716647,0.18883736,101290.0,101280.0,1.12378782]
[1737950718092,0.18883736,101290.0,101280.0,0.58218782]
[1737950718309,0.33823736,101290.0,101280.0,0.57222751]
[1737950718663,0.43558465,101290.0,101280.0,0.57222751]
[1737950722136,0.73367365,101290.0,101280.0,0.15448022]
[1737950722361,0.63367365,101290.0,101280.0,0.00637622]
[1737950722522,0.63367365,101290.0,101280.0,0.15448022]
[1737950724871,0.63367365,101290.0,101280.0,0.15546756]
[1737950724872,0.58558465,101290.0,101280.0,0.15546756]
[1737950725124,0.48558465,101290.0,101280.0,0.15448022]
[1737950725328,0.49663736,101290.0,101280.0,0.246903]
[1737950726279,0.29723736,101290.0,101280.0,0.246903]
[1737950731800,0.40685623,101290.0,101280.0,0.1492456]
[1737950732032,0.44267365,101290.0,101280.0,0.0011416]
[1737950732321,0.44267365,101290.0,101280.0,0.1492456]
[1737950732322,0.29458465,101290.0,101280.0,0.1492456]
[1737950734647,0.28883736,101290.0,101280.0,0.15023288]
[1737950734844,0.29723736,101290.0,101280.0,0.24659289]
[1737950735022,0.28883736,101290.0,101280.0,0.24659289]
[1737950735228,0.29723736,101290.0,101280.0,0.24659289]
[1737950736459,0.18883736,101290.0,101280.0,0.35886447]
[1737950736884,0.10983736,101290.0,101280.0,0.35886447]
[1737950739205,0.10983736,101290.0,101280.0,0.24659289]
[1737950739869,0.00983736,101290.0,101280.0,0.24659289]
[1737950740047,0.00983736,101290.0,101280.0,0.78819289]
[1737950740618,0.00970376,101290.0,101280.0,0.78819289]
[1737950740801,0.00970376,101290.0,101280.0,0.92346447]
[1737950741038,0.00970376,101290.0,101280.0,0.97256447]
[1737950743200,0.00970376,101290.0,101280.0,0.92346447]
[1737950748103,0.00970376,101290.0,101280.0,0.9067978]
[1737950751994,0.00963465,101290.0,101280.0,0.9067978]
[1737950752956,0.00963465,101290.0,101280.0,0.79452622]
[1737950753659,0.33443465,101290.0,101280.0,0.67417893]
[1737950753869,0.23443465,101290.0,101280.0,0.67417893]
[1737950754281,0.47987094,101290.0,101280.0,0.67417893]
[1737950754490,0.37987094,101290.0,101280.0,0.13257893]
[1737950755124,0.573404,101280.0,101270.0,0.148118]
[1737950755325,0.1753,101270.0,101260.0,0.1976386]
[1737950755535,0.1753,101270.0,101260.0,0.29498589]
[1737950755956,0.62026529,101270.0,101260.0,0.0001416]
[1737950756169,0.63253687,101270.0,101260.0,0.0001416]
[1737950756608,0.63253687,101270.0,101260.0,0.00019107]
[1737950756814,0.63353687,101270.0,101260.0,0.00019107]
[1737950757019,0.63253687,101270.0,101260.0,0.00019107]
[1737950757237,0.52026529,101270.0,101260.0,0.14832407]
[1737950757467,0.37214729,101270.0,101260.0,0.14832407]
[1737950757670,0.52026529,101270.0,101260.0,0.14832407]
[1737950758139,0.37214729,101270.0,101260.0,0.14832407]
[1737950758412,0.52426529,101270.0,101260.0,0.14832407]
[1737950758658,0.52526529,101270.0,101260.0,0.14832407]
[1737950759205,0.52526529,101270.0,101260.0,0.00019107]
[1737950759738,0.63753687,101270.0,101260.0,0.00019107]
[1737950760502,0.37714729,101270.0,101260.0,0.14832407]
[1737950761062,0.39568729,101270.0,101260.0,0.14832407]
[1737950761187,0.54380529,101270.0,101260.0,0.14832407]
[1737950761400,0.65607687,101270.0,101260.0,0.14832407]
[1737950762016,0.39568729,101270.0,101260.0,0.14832407]
[1737950762497,0.54380529,101270.0,101260.0,0.14832407]
[1737950763261,0.65607687,101270.0,101260.0,0.14832407]
[1737950764329,0.54380529,101270.0,101260.0,0.14832407]
[1737950766333,0.39568729,101270.0,101260.0,0.14832407]
[1737950767640,0.49568729,101270.0,101260.0,0.20003805]
[1737950767847,0.44618729,101270.0,101260.0,0.20003805]
[1737950768147,0.55458729,101270.0,101260.0,0.20003805]
[1737950768921,0.45458729,101270.0,101260.0,0.20003805]
[1737950769142,0.55458729,101270.0,101260.0,0.20003805]
[1737950771587,0.40458729,101270.0,101260.0,0.20003805]
[1737950772156,0.02354,101270.0,101260.0,0.20003805]
[1737950772361,0.12354,101270.0,101260.0,0.20003805]
[1737950772626,0.13194,101270.0,101260.0,0.20003805]
[1737950773358,0.12354,101270.0,101260.0,0.20003805]
[1737950773582,0.12354,101270.0,101260.0,0.31230963]
[1737950774287,0.12354,101270.0,101260.0,0.22005908]
[1737950777835,0.11954,101270.0,101260.0,0.22005908]
[1737950778044,0.12054,101270.0,101260.0,0.22005908]
[1737950778750,0.02054,101270.0,101260.0,1.01787795]
[1737950779178,0.01954,101270.0,101260.0,1.01787795]
[1737950779444,0.01954,101270.0,101260.0,1.04087795]
[1737950779648,0.01954,101270.0,101260.0,1.09357795]
[1737950779853,0.01954,101270.0,101260.0,1.56397795]
[1737950783910,0.01854,101270.0,101260.0,1.56397795]
[1737950784257,0.01954,101270.0,101260.0,1.56397795]
[1737950784451,0.01854,101270.0,101260.0,1.56397795]
[1737950784701,0.01854,101270.0,101260.0,0.70197795]
[1737950784853,0.01854,101270.0,101260.0,0.64927795]
[1737950785663,0.01854,101270.0,101260.0,0.51400637]
[1737950785862,0.01854,101270.0,101260.0,0.31740637]
[1737950786459,0.0368348,101270.0,101260.0,0.22005908]
[1737950786671,0.1181348,101270.0,101260.0,0.22005908]
[1737950786876,0.2181348,101270.0,101260.0,0.22005908]
[1737950787444,0.19984,101270.0,101260.0,0.22005908]
[1737950787845,0.20084,101270.0,101260.0,0.22005908]
[1737950789960,0.10084,101270.0,101260.0,0.22005908]
[1737950790365,0.01954,101270.0,101260.0,0.33233066]
[1737950790590,0.01954,101270.0,101260.0,0.87393066]
[1737950791630,0.08159736,101290.0,101270.0,0.023]
[1737950791844,0.00029736,101290.0,101280.0,0.2613627]
[1737950792059,0.00029736,101290.0,101280.0,0.148104]
[1737950792204,0.00029736,101290.0,101280.0,0.14909113]
[1737950792905,0.0186034,101290.0,101280.0,0.14909113]
[1737950793704,0.0226034,101290.0,101280.0,0.14909113]
[1737950793942,0.0226034,101290.0,101280.0,0.24643842]
[1737950794163,0.0226034,101290.0,101280.0,0.24545129]
[1737950795137,0.0411434,101290.0,101280.0,0.24545129]
[1737950795358,0.0421434,101290.0,101280.0,0.24545129]
[1737950795807,0.0411434,101290.0,101280.0,0.24545129]
[1737950796228,0.0421434,101290.0,101280.0,0.26493863]
[1737950796441,0.01983736,101290.0,101280.0,0.80653863]
[1737950796648,0.01883736,101290.0,101280.0,0.80653863]
[1737950796798,0.02283736,101290.0,101280.0,0.80653863]
[1737950797006,0.01883736,101290.0,101280.0,0.80653863]
[1737950797408,0.01983736,101290.0,101280.0,0.80653863]
[1737950799075,0.01983736,101290.0,101280.0,0.81646548]
[1737950803233,0.11983736,101290.0,101280.0,0.81646548]
[1737950804205,0.01983736,101290.0,101280.0,0.48448435]
[1737950806230,0.01983736,101290.0,101280.0,0.37221277]
[1737950806378,0.01983736,101290.0,101280.0,0.27486548]
[1737950808418,0.01983736,101290.0,101280.0,0.81646548]
[1737950810600,0.19513736,101290.0,101280.0,0.81646548]
[1737950810816,0.55469794,101290.0,101280.0,0.70919134]
[1737950811027,0.65204523,101290.0,101280.0,0.148104]
[1737950811233,0.50395623,101290.0,101280.0,0.148104]
[1737950811441,0.63977365,101290.0,101280.0,0.148104]
[1737950811652,0.63877365,101290.0,101280.0,0.148104]
[1737950811853,0.63877365,101290.0,101280.0,0.23189213]
[1737950812011,0.64577365,101290.0,101280.0,0.23189213]
[1737950812213,0.49268465,101290.0,101280.0,0.23189213]
[1737950812649,0.49768465,101290.0,101280.0,0.23189213]
[1737950813057,0.49968465,101290.0,101280.0,0.23189213]
[1737950815047,0.39968465,101290.0,101280.0,0.23189213]
[1737950815477,0.10313736,101290.0,101280.0,0.23189213]
[1737950815675,0.20313736,101290.0,101280.0,0.23189213]
[1737950816127,0.10313736,101290.0,101280.0,0.23189213]
[1737950816330,0.10113736,101290.0,101280.0,0.23189213]
[1737950818361,0.09413736,101290.0,101280.0,0.23189213]
[1737950819111,0.09513736,101290.0,101280.0,0.23189213]
[1737950819491,0.19513736,101290.0,101280.0,0.23189213]
[1737950824206,0.09513736,101290.0,101280.0,0.23189213]
[1737950826194,0.09513736,101290.0,101280.0,0.34416371]
[1737950826453,0.01983736,101290.0,101280.0,0.34416371]
[1737950828237,0.01983736,101290.0,101280.0,0.983111]
[1737950832026,0.01983736,101290.0,101280.0,1.20616371]
[1737950832335,0.01983736,101290.0,101280.0,1.09389213]
[1737950832336,0.09513736,101290.0,101280.0,1.09389213]
[1737950832539,0.19603542,101290.0,101280.0,1.09389213]
[1737950832778,0.19513736,101290.0,101280.0,1.09389213]
[1737950833137,0.19513736,101290.0,101280.0,0.23189213]
[1737950833138,0.29248465,101290.0,101280.0,0.23189213]
[1737950833537,0.1753,101280.0,101270.0,0.41457158]
[1737950833805,0.29118729,101280.0,101270.0,0.41457158]
[1737950835927,0.29618729,101280.0,101270.0,0.41457158]
[1737950836463,0.29884,101280.0,101270.0,0.41457158]
[1737950837464,0.19884,101280.0,101270.0,0.41457158]
[1737950837887,0.19884,101280.0,101270.0,0.50775625]
[1737950839166,0.09884,101280.0,101270.0,0.50775625]
[1737950840915,0.19884,101280.0,101270.0,0.50775625]
[1737950844060,0.19884,101280.0,101270.0,1.04935625]
[1737950844794,0.02354,101280.0,101270.0,1.16162783]
[1737950845337,0.02354,101280.0,101270.0,1.04935625]
[1737950845597,0.02254,101280.0,101270.0,1.04935625]
[1737950845802,0.01854,101280.0,101270.0,1.04935625]
[1737950849267,0.01883736,101280.0,101270.0,1.04935625]
[1737950850046,0.01883736,101280.0,101270.0,1.25897512]
[1737950850264,0.01883736,101280.0,101270.0,1.28197512]
[1737950855846,0.01883736,101280.0,101270.0,1.60237512]
[1737950859255,0.01883736,101280.0,101270.0,1.57937512]
[1737950861879,0.01883736,101280.0,101270.0,0.71737512]
[1737950865208,0.01883736,101280.0,101270.0,0.60510354]
[1737950865390,0.01883736,101280.0,101270.0,0.71737512]
[1737950866368,0.01883736,101280.0,101270.0,0.60510354]
[1737950866934,0.01873396,101280.0,101270.0,0.60510354]
[1737950867863,0.01873396,101280.0,101270.0,1.46710354]
[1737950869431,0.01873396,101280.0,101270.0,1.57937512]
[1737950873658,9.6e-07,101280.0,101270.0,1.81323024]
[1737950873912,0.89865736,101310.0,101300.0,0.148075]
[1737950874168,0.89865736,101310.0,101300.0,0.97333697]
[1737950874169,0.89029736,101310.0,101300.0,0.97333697]
[1737950875185,0.89178792,101310.0,101300.0,0.97333697]
[1737950875437,0.89578792,101310.0,101300.0,0.97333697]
[1737950876851,0.91432792,101310.0,101300.0,1.02283697]
[1737950877087,0.91432792,101310.0,101300.0,1.23664782]
[1737950877555,0.91432792,101310.0,101300.0,1.55704782]
[1737950878046,0.91032792,101310.0,101300.0,1.59686184]
[1737950878248,0.90932792,101310.0,101300.0,1.56605099]
[1737950878443,0.91032792,101310.0,101300.0,1.56605099]
[1737950879207,0.90932792,101310.0,101300.0,1.56605099]
[1737950879665,0.90932792,101310.0,101300.0,1.57618677]
[1737950879905,0.90932792,101310.0,101300.0,1.57918677]
[1737950880853,0.90932792,101310.0,101300.0,1.58018677]
[1737950883277,0.99242792,101310.0,101300.0,1.52068677]
[1737950885010,0.99242792,101310.0,101300.0,1.49768677]
[1737950885214,0.99242792,101310.0,101300.0,1.1180679]
[1737950885866,1.14122792,101310.0,101300.0,1.1180679]
[1737950886437,1.24122792,101310.0,101300.0,1.1180679]
[1737950886659,1.24122792,101310.0,101300.0,1.1140679]
[1737950887065,1.24222792,101310.0,101300.0,1.1140679]
[1737950887697,1.24122792,101310.0,101300.0,1.1140679]
[1737950887891,1.24222792,101310.0,101300.0,1.1140679]
[1737950888112,1.24622792,101310.0,101300.0,1.1140679]
[1737950888412,1.24222792,101310.0,101300.0,1.1140679]
[1737950888611,1.24222792,101310.0,101300.0,0.5724679]
[1737950888836,1.24622792,101310.0,101300.0,0.5724679]
[1737950891007,1.27622792,101310.0,101300.0,0.5724679]
[1737950893318,1.27622792,101310.0,101300.0,0.56233212]
[1737950893529,1.42999521,101310.0,101300.0,0.09385712]
[1737950894372,1.42999521,101310.0,101300.0,0.24193212]
[1737950896106,1.42999521,101310.0,101300.0,0.09385712]
[1737950896464,1.54226679,101310.0,101300.0,0.09385712]
[1737950896663,0.248075,101300.0,101290.0,0.0001416]
[1737950896870,0.50928658,101300.0,101290.0,0.0001416]
[1737950897075,0.50928658,101300.0,101290.0,0.1482306]
[1737950897490,0.50663387,101300.0,101290.0,0.0001416]
[1737950897892,0.50763387,101300.0,101290.0,0.0001416]
[1737950898317,0.51063387,101300.0,101290.0,0.0001416]
[1737950898493,0.50663387,101300.0,101290.0,0.0001416]
[1737950898697,0.50763387,101300.0,101290.0,0.0001416]
[1737950898935,0.66163387,101300.0,101290.0,0.0001416]
[1737950899492,0.275004,101280.0,101270.0,0.0001416]
[1737950899754,0.50316287,101280.0,101270.0,0.0001416]
[1737950899963,0.50316287,101280.0,101270.0,0.02033964]
[1737950900098,0.50316287,101280.0,101270.0,0.16845764]
[1737950901154,0.39089129,101280.0,101270.0,0.24553987]
[1737950901764,0.39189129,101280.0,101270.0,0.24553987]
[1737950902377,0.39789129,101280.0,101270.0,0.24553987]
[1737950903012,0.39789129,101280.0,101270.0,0.07722383]
[1737950904005,0.39689129,101280.0,101270.0,0.07722383]
[1737950904175,0.39889129,101280.0,101270.0,0.07722383]
[1737950904401,0.39889129,101280.0,101270.0,0.22534183]
[1737950904804,0.25078729,101280.0,101270.0,0.22534183]
[1737950905753,0.39889129,101280.0,101270.0,0.22534183]
[1737950910302,0.39889129,101280.0,101270.0,0.07722383]
[1737950910497,0.51116287,101280.0,101270.0,0.07722383]
[1737950911525,0.51116287,101280.0,101270.0,0.22534183]
[1737950912169,0.39889129,101280.0,101270.0,0.22534183]
[1737950912376,0.39889129,101280.0,101270.0,0.07722383]
[1737950917107,0.51116287,101280.0,101270.0,0.07722383]
[1737950917343,0.66116287,101280.0,101270.0,0.0001416]
[1737950917599,0.77343445,101280.0,101270.0,0.0001416]
[1737950917796,0.79643445,101280.0,101270.0,0.0001416]
[1737950918688,0.79043445,101280.0,101270.0,0.0001416]
[1737950918931,0.78843445,101280.0,101270.0,0.0001416]
[1737950919183,0.73808958,101270.0,101260.0,0.00010918]
[1737950919382,0.85397687,101270.0,101260.0,0.00010918]
[1737950920484,0.85397687,101270.0,101260.0,0.00015865]
[1737950920912,0.85697687,101270.0,101260.0,0.00015865]
[1737950921408,0.87997687,101270.0,101260.0,0.00015865]
[1737950921644,0.91937687,101270.0,101260.0,0.00015865]
[1737950921864,0.92837687,101270.0,101260.0,0.00015865]
[1737950922078,1.22858887,101270.0,101260.0,0.00015865]
[1737950922845,1.22558887,101270.0,101260.0,0.00015865]
[1737950923044,1.06064787,101270.0,101260.0,0.00015865]
[1737950923254,1.06464787,101270.0,101260.0,0.00015865]
[1737950923433,1.07364787,101270.0,101260.0,0.00015865]
[1737950923605,1.06964787,101270.0,101260.0,0.00015865]
[1737950924671,1.07364787,101270.0,101260.0,0.00015865]
[1737950924874,1.06464787,101270.0,101260.0,0.00015865]
[1737950925308,1.07364787,101270.0,101260.0,0.00015865]
[1737950925486,1.04065287,101270.0,101260.0,0.00015865]
[1737950925661,0.94945838,101270.0,101260.0,0.00015865]
[1737950925876,0.94545838,101270.0,101260.0,0.00015865]
[1737950926075,0.95381838,101270.0,101260.0,0.00015865]
[1737950926281,0.95881838,101270.0,101260.0,0.00015865]
[1737950926691,0.82581838,101270.0,101260.0,0.00015865]
[1737950929370,0.86537638,101270.0,101260.0,0.00015865]
[1737950929576,0.7447448,101270.0,101260.0,0.14829165]
[1737950929779,0.74302329,101270.0,101260.0,0.00015865]
[1737950930599,0.74302329,101270.0,101260.0,0.14829165]
[1737950930804,0.70346529,101270.0,101260.0,0.14829165]
[1737950931233,0.81573687,101270.0,101260.0,0.00015865]
[1737950933496,0.81603423,101270.0,101260.0,0.00015865]
[1737950934160,0.473733,101260.0,101250.0,0.14811699]
[1737950934381,0.68340087,101260.0,101250.0,0.22422706]
[1737950934562,0.70194087,101260.0,101250.0,0.22422706]
[1737950935552,0.60266929,101260.0,101250.0,0.22422706]
[1737950936512,0.71494087,101260.0,101250.0,0.07611007]
[1737950936691,0.71494087,101260.0,101240.0,0.0001417]
[1737950936692,0.522748,101250.0,101240.0,0.0001417]
[1737950936908,0.75090687,101250.0,101240.0,0.0001417]
[1737950937102,0.86317845,101250.0,101240.0,0.0001417]
[1737950937532,0.75090687,101250.0,101240.0,0.0001417]
[1737950938056,0.75990687,101250.0,101240.0,0.0001417]
[1737950938185,0.87217845,101250.0,101240.0,0.0001417]
[1737950938645,0.87517845,101250.0,101240.0,0.0001417]
[1737950938842,0.90279428,101250.0,101240.0,0.0001417]
[1737950939040,1.62034028,101250.0,101240.0,0.0001417]
[1737950939196,1.64034028,101250.0,101240.0,0.0001417]
[1737950939459,0.421162,101240.0,101230.0,0.01744571]
[1737950939815,0.8409367,101240.0,101230.0,0.01744571]
[1737950940015,0.87095511,101240.0,101230.0,0.01744571]
[1737950941108,0.8409367,101240.0,101230.0,0.01744571]
[1737950941303,0.87095511,101240.0,101230.0,0.01744571]
[1737950942409,0.8409367,101240.0,101230.0,0.01744571]
[1737950943012,0.8499367,101240.0,101230.0,0.01744571]
[1737950943223,0.85978113,101240.0,101230.0,0.01744571]
[1737950943437,0.90279954,101240.0,101230.0,0.01744571]
[1737950943640,1.31507112,101240.0,101230.0,0.01644571]
[1737950943940,1.52136154,101240.0,101230.0,0.01644571]
[1737950944772,1.51236154,101240.0,101230.0,0.01644571]
[1737950944944,1.50936154,101240.0,101230.0,0.01644571]
[1737950945157,0.8091653,101240.0,101230.0,0.01644571]
[1737950945494,0.7551653,101240.0,101230.0,0.16462271]
[1737950945708,0.50224729,101240.0,101230.0,0.16462271]
[1737950945915,0.61451887,101240.0,101230.0,0.16462271]
[1737950946118,0.61451887,101240.0,101230.0,0.16476431]
[1737950946119,0.74968087,101240.0,101230.0,0.16476431]
[1737950946331,0.75868087,101240.0,101230.0,0.16476431]
[1737950946533,0.76368087,101240.0,101230.0,0.01658731]
[1737950946976,0.81268087,101240.0,101230.0,0.01658731]
[1737950947180,1.14568087,101240.0,101230.0,0.01658731]
[1737950947380,1.91097087,101240.0,101230.0,0.01658731]
[1737950947585,1.85910587,101240.0,101230.0,0.01658731]
[1737950947730,1.56538087,101240.0,101230.0,0.01658731]
[1737950947932,1.62002419,101240.0,101230.0,0.01658731]
[1737950948138,1.64264002,101240.0,101230.0,0.01658731]
[1737950948352,1.18632419,101240.0,101230.0,0.01658731]
[1737950948556,1.32085819,101240.0,101230.0,0.01658731]
[1737950948765,1.35390778,101240.0,101230.0,0.01658731]
[1737950948971,1.24483187,101240.0,101230.0,0.01658731]
[1737950949198,1.25383187,101240.0,101230.0,0.01658731]
[1737950949397,1.31751929,101240.0,101230.0,0.01658731]
[1737950951543,0.99915929,101240.0,101230.0,0.01658731]
[1737950951725,1.46613497,101240.0,101230.0,0.01658731]
[1737950952517,0.223792,101220.0,101210.0,0.0001418]
[1737950952756,0.62290987,101220.0,101210.0,0.0001418]
[1737950953793,0.62290987,101220.0,101210.0,0.0002396]
[1737950954014,0.63190987,101220.0,101210.0,0.0002396]
[1737950954154,0.49202246,101220.0,101210.0,0.0002396]
[1737950954763,0.46095087,101220.0,101210.0,0.0002396]
[1737950955024,0.46931087,101220.0,101210.0,0.0002396]
[1737950955433,0.47331087,101220.0,101210.0,0.0002396]
[1737950957089,0.39771087,101220.0,101210.0,0.0002396]
[1737950958858,0.38935087,101220.0,101210.0,0.0457396]
[1737950959064,0.39771087,101220.0,101210.0,0.1939456]
[1737950959268,0.39771087,101220.0,101210.0,0.0002396]
[1737950959423,0.50998245,101220.0,101210.0,0.0002396]
[1737950959630,0.498206,101210.0,101200.0,0.193718]
[1737950959823,0.70782487,101210.0,101200.0,0.19386653]
[1737950960041,0.72636487,101210.0,101200.0,0.19386653]
[1737950960987,0.46588729,101210.0,101200.0,0.19386653]
[1737950961199,0.47488729,101210.0,101200.0,0.19386653]
[1737950961600,0.37754,101210.0,101200.0,0.27103869]
[1737950962046,0.3889,101210.0,101200.0,0.27103869]
[1737950962613,0.38054,101210.0,101200.0,0.27103869]
[1737950962808,0.3889,101210.0,101200.0,0.27103869]
[1737950963218,0.1389,101210.0,101200.0,0.33863869]
[1737950964471,0.1299,101210.0,101200.0,0.33863869]
[1737950964701,0.1329,101210.0,101200.0,0.33863869]
[1737950964893,0.1299,101210.0,101200.0,0.33863869]
[1737950965104,0.1329,101210.0,101200.0,0.33863869]
[1737950965725,0.1299,101210.0,101200.0,0.33863869]
[1737950965954,0.1299,101210.0,101200.0,0.35885625]
[1737950966157,0.1309,101210.0,101200.0,0.35885625]
[1737950971339,0.1309,101210.0,101200.0,0.35899795]
[1737950972167,0.12254,101210.0,101200.0,0.35899795]
[1737950972469,0.1309,101210.0,101200.0,0.35899795]
[1737950976202,0.2309,101210.0,101200.0,0.35899795]
[1737950978181,0.2309,101210.0,101200.0,0.29139795]
[1737950984068,0.2269,101210.0,101200.0,0.29139795]
[1737950984287,0.2289,101210.0,101200.0,0.29139795]
[1737950984529,0.3289,101210.0,101200.0,0.29139795]
[1737950984778,0.32719736,101210.0,101200.0,0.29139795]
[1737950985208,0.33319736,101210.0,101200.0,0.29139795]
[1737950985228,0.33419736,101210.0,101200.0,0.29139795]
[1737950986168,0.32819736,101210.0,101200.0,0.29139795]
[1737950986684,0.33119736,101210.0,101200.0,0.29139795]
[1737950990293,0.33119736,101210.0,101200.0,0.24589795]
[1737950991354,0.43119736,101210.0,101200.0,0.24589795]
[1737950991548,0.54346894,101210.0,101200.0,0.24589795]
[1737950991848,0.61956894,101210.0,101200.0,0.24589795]
[1737950992721,0.71691623,101210.0,101200.0,0.16872579]
[1737950992931,0.86512223,101210.0,101200.0,0.16872579]
[1737950993698,0.76512223,101210.0,101200.0,0.16872579]
[1737950994293,0.81342223,101210.0,101200.0,0.02050779]
[1737950997111,0.81342223,101210.0,101200.0,0.16872879]
[1737950997112,0.91342223,101210.0,101200.0,0.16872879]
[1737950997308,0.91342223,101210.0,101200.0,0.23996515]
[1737950997309,0.80115065,101210.0,101200.0,0.23996515]
[1737950997655,0.70115065,101210.0,101200.0,0.23996515]
[1737950997863,0.80115065,101210.0,101200.0,0.23996515]
[1737950999316,0.76521623,101210.0,101200.0,0.23996515]
[1737950999453,0.80115065,101210.0,101200.0,0.23996515]
[1737950999877,0.80115065,101210.0,101200.0,0.16872879]
[1737951000832,0.65294465,101210.0,101200.0,0.16872879]
[1737951001014,0.60464465,101210.0,101200.0,0.16872879]
[1737951001608,0.75285065,101210.0,101200.0,0.16872879]
[1737951002607,0.86512223,101210.0,101200.0,0.16872879]
[1737951003031,1.01512223,101210.0,101200.0,0.16872879]
[1737951004792,1.01512223,101210.0,101200.0,0.02050779]
[1737951009594,1.01512223,101210.0,101200.0,0.00029023]
[1737951013141,1.01412223,101210.0,101200.0,0.00029023]
[1737951013930,1.01112223,101210.0,101200.0,0.00029023]
[1737951014129,1.09182223,101210.0,101200.0,0.00029023]
[1737951014349,1.10382223,101210.0,101200.0,0.00029023]
[1737951014592,1.08482223,101210.0,101200.0,0.00029023]
[1737951014752,0.96628223,101210.0,101200.0,0.00029023]
[1737951015071,0.97228223,101210.0,101200.0,0.00029023]
[1737951015318,0.96328223,101210.0,101200.0,0.00029023]
[1737951015689,0.97228223,101210.0,101200.0,0.00029023]
[1737951015902,0.94028223,101210.0,101200.0,0.00029023]
[1737951016460,0.94328223,101210.0,101200.0,0.00029023]
[1737951016669,1.08855381,101210.0,101200.0,0.00029023]
[1737951016875,0.97628223,101210.0,101200.0,0.00029023]
[1737951017078,0.97328223,101210.0,101200.0,0.00029023]
[1737951017303,0.98628223,101210.0,101200.0,0.00029023]
[1737951017466,1.01390306,101210.0,101200.0,0.00029023]
[1737951017669,1.00490306,101210.0,101200.0,0.00029023]
[1737951017899,1.04097465,101210.0,101200.0,0.00029023]
[1737951018100,1.04597465,101210.0,101200.0,0.00029023]
[1737951018342,1.03697465,101210.0,101200.0,0.00029023]
[1737951018547,1.04597465,101210.0,101200.0,0.00029023]
[1737951019120,1.08537465,101210.0,101200.0,0.00029023]
[1737951019694,1.10391465,101210.0,101200.0,0.00029023]
[1737951022549,1.06451465,101210.0,101200.0,0.00029023]
[1737951022753,1.10391465,101210.0,101200.0,0.00029023]
[1737951023128,0.01609304,101180.0,101170.0,0.36557694]
[1737951023326,0.23198033,101180.0,101170.0,0.4151309]
[1737951023553,0.24030033,101180.0,101170.0,0.4151309]
[1737951023752,0.14295304,101180.0,101170.0,0.5297309]
[1737951023954,0.24295304,101180.0,101170.0,0.5297309]